Cogmind - Beta 14 @@@ ROGUE MODE // 2024.08.10 @ 15:24:15 Player: jimmyl Result: Self-destructed Performance ------------- Evolutions (6) 3000 Regions Visited (19) 3800 Robots Destroyed (110) 550 Value Destroyed (2676) 2676 Prototype IDs (31) 620 Alien Tech Used (0) 0 Bonus (744) 744 TOTAL SCORE: 11390 Bonus ------- High Alert Combat Kills 26 Follower Combat Kills 218 Network Hubs Disabled 200 Aligned with FarCom 300 Cogmind --------- Core Integrity 1150/1150 Matter 65/300 Energy 100/100 System Corruption 2% Temperature Cool (0) Movement Walking (140) Location -4/Factory Parts ------- > --- POWER (1) -------- (None) > --- PROPULSION (5) --- Heavy Armored Exoskeleton Cooled Nuclear Pulse Thruster > --- UTILITY (11) ----- Advanced Visual Processing Unit Hacking Suite Hacking Suite Hacking Suite Hacking Suite Improved System Shield > --- WEAPON (2) ------- KE Penetrator Advanced Micro-nuke Launcher > --- INVENTORY (5) ---- Enhanced Quantum Rifle Enhanced Quantum Rifle Magnetic Acceleration Cannon Peak State ------------ > --- POWER ------------ Light Nuclear Core > --- PROPULSION ------- Flying Fortress v7 > --- UTILITY ---------- Triangulator Advanced Visual Processing Unit Transmission Jammer Advanced ECM Suite Reactive Plating Hacking Suite Hacking Suite Hacking Suite Improved System Shield > --- WEAPON ----------- Smartbomb Launcher > --- INVENTORY -------- Bomb Drone Bay Magnetic Acceleration Cannon Spear [Rating: 82] Favorites ----------- Power Nuclear Core Engine Ion Engine Power Core Nuclear Core Propulsion Light Treads Treads Light Treads Leg Aluminum Leg Wheel Compact Wheel Flight Unit Flying Fortress v7 Utility Hacking Suite Device Advanced ECM Suite Storage Medium Storage Unit Processor Advanced Visual Processing Unit Hackware Hacking Suite Protection Reactive Plating Weapon Advanced Beam Cannon Energy Gun Small Laser Energy Cannon Advanced Beam Cannon Ballistic Gun KE Penetrator Ballistic Cannon Magnetic Acceleration Cannon Launcher Heavy Rocket Launcher Special Weapon Remote Datajack Impact Weapon Mace Slashing Weapon Greatsword Piercing Weapon Spear Build | -11 -10 -10 -9 -9 -9 -8 -8 -7 -7 -7 -7 -5 -5 -5 -5 -5 -4 -4 -4 ------- Run | Yrd Mat Min Mat Min Exi Min Mat Fac Sto Rec Scr Fac Ext Cet Arc Hub Fac Was Fac Slots Evolved 12 | . . . 2 . . . 2 2 . . . 4 . . . . 2 . . Power . | . . . . . . . . . . . . . . . . . . . . Propulsion 3 | . . . 2 . . . . . . . . 1 . . . . . . . Utility 9 | . . . . . . . 2 2 . . . 3 . . . . 2 . . Weapon . | . . . . . . . . . . . . . . . . . . . . Parts Attached 73 | . 16 . 13 3 2 . 5 15 1 . . 4 6 1 1 2 1 3 . Power 5 | . 2 . 1 . . . 1 1 . . . . . . . . . . . Engine 3 | . 2 . 1 . . . . . . . . . . . . . . . . Core 2 | . . . . . . . 1 1 . . . . . . . . . . . Reactor . | . . . . . . . . . . . . . . . . . . . . Propulsion 15 | . 5 . 5 2 1 . . . . . . . . . . 1 . 1 . Treads 7 | . 5 . 2 . . . . . . . . . . . . . . . . Leg 1 | . . . . . . . . . . . . . . . . . . 1 . Wheel 3 | . . . 3 . . . . . . . . . . . . . . . . Hover . | . . . . . . . . . . . . . . . . . . . . Flight 4 | . . . . 2 1 . . . . . . . . . . 1 . . . Utility 24 | . 2 . 2 1 . . 3 8 . . . 3 3 . . . 1 1 . Device 11 | . . . 1 . . . 2 5 . . . . 2 . . . . 1 . Storage 1 | . 1 . . . . . . . . . . . . . . . . . . Processor 4 | . 1 . 1 . . . . 2 . . . . . . . . . . . Hackware 5 | . . . . . . . . 1 . . . 3 . . . . 1 . . Protection 3 | . . . . 1 . . 1 . . . . . 1 . . . . . . Artifact . | . . . . . . . . . . . . . . . . . . . . Weapon 29 | . 7 . 5 . 1 . 1 6 1 . . 1 3 1 1 1 . 1 . Energy Gun 5 | . 2 . 2 . . . . 1 . . . . . . . . . . . Energy Cannon 6 | . 4 . 2 . . . . . . . . . . . . . . . . Ballistic Gun 3 | . 1 . 1 . . . . . . . . . . . . 1 . . . Ballistic Cannon 3 | . . . . . . . . . . . . . 1 1 1 . . . . Launcher 5 | . . . . . 1 . . . 1 . . 1 1 . . . . 1 . Special Weapon 1 | . . . . . . . . 1 . . . . . . . . . . . Impact Weapon 1 | . . . . . . . 1 . . . . . . . . . . . . Slashing Weapon 1 | . . . . . . . . 1 . . . . . . . . . . . Piercing Weapon 4 | . . . . . . . . 3 . . . . 1 . . . . . . Special Melee Weapon . | . . . . . . . . . . . . . . . . . . . . Unidentified Prototypes 5 | . 1 . . . . . 1 . . . . . . . . 1 . 2 . Parts Lost 17 | . 3 1 10 . . . 1 . . . . . 1 1 . . . . . Power 2 | . . 1 1 . . . . . . . . . . . . . . . . Propulsion 9 | . 1 . 7 . . . . . . . . . . 1 . . . . . Utility 2 | . . . 1 . . . 1 . . . . . . . . . . . . Weapon 4 | . 2 . 1 . . . . . . . . . 1 . . . . . . Highest Loss Streak 4 | . 3 1 4 . . . 1 . . . . . 1 1 . . . . . To Critical Strikes 1 | . . . . . . . . . . . . . . 1 . . . . . Average Slot Usage (%) 72 | . 93 94 62 38 37 44 59 70 75 76 76 72 69 42 32 40 41 47 52 Engine 3 | . 13 8 3 . . . . . . . . . . . . . . . . Core 3 | . . . . . . . 8 7 7 7 7 5 5 1 . . . . . Treads 7 | . 20 28 15 . . . . . . . . . . . . . . . . Leg 1 | . 7 . . . . . . . . . . . . . . . . 3 5 Flight 4 | . . . . 22 15 11 9 7 7 7 7 5 5 1 . 4 5 5 5 Device 9 | . . . 3 . . . . 19 23 23 23 17 17 4 . . . . . Storage 4 | . 14 14 10 . . . . . . . . . . . . . . . . Processor 8 | . 8 14 7 11 11 11 9 9 7 7 7 5 5 5 5 5 5 5 5 Hackware 8 | . . . . . . . . 6 7 7 7 23 23 23 23 23 25 26 26 Protection 3 | . . . . 5 11 11 15 7 7 7 7 5 4 1 . . . . . Energy Cannon 7 | . 17 28 15 . . . . . . . . . . . . . . . . Ballistic Gun 1 | . 5 . 1 . . . . . . . . . . . . 5 5 5 5 Launcher 1 | . . . . . . 11 9 . 6 7 7 5 2 1 . . . 2 5 Piercing Weapon 1 | . . . . . . . . 3 7 7 7 1 2 1 . . . . . Peak Build Rating 82 | 6 13 13 14 7 39 39 52 67 66 66 67 82 82 76 22 30 35 76 76 Average Rating 42 | 6 10 12 11 5 23 39 47 63 65 66 66 80 75 33 19 28 33 59 76 On Entrance 38 | 6 6 13 12 3 7 39 39 50 63 66 66 67 82 76 17 17 30 35 76 Naked Turns . | . . . . . . . . . . . . . . . . . . . . Heaviest Build 30 | 13 23 23 26 1 5 5 24 27 29 29 29 29 30 29 8 5 5 14 14 Greatest Support 90 | 20 40 40 40 8 50 50 50 50 50 50 50 50 50 50 3 6 6 90 90 Greatest Overweight (x) 4 | . . . 4 . . . . . . . . . . . 2 1 . . . Average Overweight (x) . | . . . . . . . . . . . . . . . . . . . . Largest Inventory Capacity 10 | 8 10 10 10 5 5 5 5 5 5 5 5 5 5 5 5 5 5 5 5 Average Capacity 6 | 8 9 10 9 5 5 5 5 5 5 5 5 5 5 5 5 5 5 5 5 Most Carried 10 | 6 10 10 10 4 4 3 5 5 4 3 5 5 5 1 1 1 3 3 3 Average Carried 5 | 6 8 10 6 2 3 3 4 4 3 3 4 4 3 . . 1 1 3 3 Final Capacity 10 | 8 10 10 5 5 5 5 5 5 5 5 5 5 5 5 5 5 5 5 5 Final Carried 10 | 6 10 10 3 4 3 3 5 4 3 3 5 5 1 1 1 1 3 3 3 Class Distribution -------------------- 54% | Mutant 24% | Hacker-Mutant 18% | Infiltrator-Mutant Dominant Class ---------------- Mutant | -10/Materials Mutant | -10/Mines Mutant | -9/Materials Mutant | -9/Mines Mutant | -9/Exiles Mutant | -8/Mines Mutant | -8/Materials Mutant | -7/Factory Commander-Mutant | -7/Storage Infiltrator-Mutant | -7/Recycling Infiltrator-Mutant | -7/Scraptown Hacker-Mutant | -5/Factory Hacker-Mutant | -5/Extension Hacker-Mutant | -5/Cetus Hacker-Mutant | -5/Archives Hacker-Mutant | -5/Hub_04(d) Hacker-Mutant | -4/Factory Hacker-Mutant | -4/Waste Hacker-Mutant | -4/Factory Resources | -11 -10 -10 -9 -9 -9 -8 -8 -7 -7 -7 -7 -5 -5 -5 -5 -5 -4 -4 -4 ----------- Run | Yrd Mat Min Mat Min Exi Min Mat Fac Sto Rec Scr Fac Ext Cet Arc Hub Fac Was Fac Matter Collected 1585 | 190 267 14 110 20 . . 99 163 122 . . 18 469 . . 54 . 59 . Remotely . | . . . . . . . . . . . . . . . . . . . . Salvage Created 2255 | . 459 252 480 . . . 213 177 19 . . 86 394 . . 19 . . 156 Parts 141 | . 39 7 32 . . . 20 12 1 . . 7 9 . . 1 . . 13 Haulers Intercepted 2 | . . . . . . . 2 . . . . . . . . . . . . Recyclers Shooed 2 | . . . 1 . . . 1 . . . . . . . . . . . . Parts Field Recycled . | . . . . . . . . . . . . . . . . . . . . Retrieved Matter . | . . . . . . . . . . . . . . . . . . . . Parts Self-Destructed . | . . . . . . . . . . . . . . . . . . . . Prevented . | . . . . . . . . . . . . . . . . . . . . Kills | -11 -10 -10 -9 -9 -9 -8 -8 -7 -7 -7 -7 -5 -5 -5 -5 -5 -4 -4 -4 ------- Run | Yrd Mat Min Mat Min Exi Min Mat Fac Sto Rec Scr Fac Ext Cet Arc Hub Fac Was Fac Combat Hostiles Destroyed 73 | . 14 8 12 . . . 15 2 4 . . 9 4 . . . . . 5 Melee 4 | . . . 1 . . . 1 2 . . . . . . . . . . . Guns 11 | . 10 . 1 . . . . . . . . . . . . . . . . Cannons 18 | . 4 7 7 . . . . . . . . . . . . . . . . AOE 39 | . . . 3 . . . 14 . 4 . . 9 4 . . . . . 5 Classes Destroyed 13 | . 3 1 3 . . . 3 2 . . . 1 . . . . . . . Worker 15 | . . . . . . . 2 3 . . . . . . . 1 . . 9 Builder 2 | . . . . . . . . . . . . 2 . . . . . . . Hauler 2 | . . . . . . . 2 . . . . . . . . . . . . Recycler 3 | . . . 1 . . . . . . . . . 2 . . . . . . Operator 4 | . . . . . . . 3 1 . . . . . . . . . . . Watcher 12 | . 3 . 3 . . . 2 . . . . 2 1 . . . . . 1 Swarmer 42 | . 6 3 7 . . . 14 . 4 . . 8 . . . . . . . Grunt 24 | . 8 4 2 . . . 1 . . . . . 4 . . . . . 5 Brawler 1 | . . . 1 . . . . . . . . . . . . . . . . Sentry 2 | . . . 2 . . . . . . . . . . . . . . . . Hunter 2 | . . . . . . . . 1 . . . 1 . . . . . . . Programmer 1 | . . . . . . . . 1 . . . . . . . . . . . Assembled 1 | . . 1 . . . . . . . . . . . . . . . . . Best Kill Streak 13 | . 3 3 4 . . . 13 1 4 . . 9 3 . . 1 . . 13 Combat Bots Only 9 | . 3 3 4 . . . 9 1 4 . . 8 3 . . . . . 4 Max Kills in Single Turn 5 | . 2 2 2 . . . 4 1 4 . . 3 3 . . 1 . . 5 Gunslinging . | . . . . . . . . . . . . . . . . . . . . Exploded 4 | . . . 2 . . . 3 . 4 . . 3 3 . . . . . 2 Melee 1 | . . . 1 . . . 1 1 . . . . . . . . . . . Uniques/NPCs Destroyed . | . . . . . . . . . . . . . . . . . . . . Combat | -11 -10 -10 -9 -9 -9 -8 -8 -7 -7 -7 -7 -5 -5 -5 -5 -5 -4 -4 -4 -------- Run | Yrd Mat Min Mat Min Exi Min Mat Fac Sto Rec Scr Fac Ext Cet Arc Hub Fac Was Fac Hostile Shots Fired 463 | . 87 29 148 . . . 51 15 3 . . 24 29 33 22 . . . 22 Missed 169 | . 26 9 37 . . . 24 8 2 . . 10 16 19 8 . . . 10 Damage Taken 4351 | . 679 227 1256 . . . 398 122 9 . . 236 362 359 372 106 . . 225 Core 1304 | . 105 11 358 . . . 31 . . . . . 61 260 372 106 . . . Absorbed by Shields 3 | . . . . . . . . . 3 . . . . . . . . . . Redirected to Shielding 35 | . . . . . . . 35 . . . . . . . . . . . . Ignored by Resistances 122 | . . . . . . . 30 1 4 . . 48 16 23 . . . . . Core Remaining (%) 62 | 100 . 53 . . . 10 94 . . . 100 . . . . 20 . . . Volleys Fired 172 | . 52 24 38 . . . 11 . 2 . . 15 10 1 3 1 . . 15 Largest 2 | . 2 2 2 . . . 1 . 1 . . 1 1 1 1 1 . . 1 Hottest 136 | . 136 136 136 . . . 33 . 39 . . 46 46 53 53 33 . . 30 Shots Fired 266 | . 101 48 59 . . . 11 . 2 . . 15 10 1 3 1 . . 15 Gun 84 | . 71 . 12 . . . . . . . . . . . . 1 . . . Cannon 129 | . 30 48 47 . . . . . . . . . . 1 3 . . . . Launcher 53 | . . . . . . . 11 . 2 . . 15 10 . . . . . 15 Special . | . . . . . . . . . . . . . . . . . . . . Kinetic 42 | . 35 . 2 . . . . . . . . . . 1 3 1 . . . Thermal 153 | . 58 48 47 . . . . . . . . . . . . . . . . Explosive 53 | . . . . . . . 11 . 2 . . 15 10 . . . . . 15 Electromagnetic 18 | . 8 . 10 . . . . . . . . . . . . . . . . Robot Hit Streak 10 | . 4 4 10 . . . 5 . . . . 9 10 . . . . . 2 Robot Miss Streak 7 | . 7 2 4 . . . . . . . . . . . . . . . 2 Penetration Max . | . . . . . . . . . . . . . . . . . . . . Secondary Targets 1 | . 1 . . . . . . . . . . . . . . . . . . Max Gunslinging Chain 1 | . 1 . . . . . . . . . . . . . . . . . . Shots Hit Robots 136 | . 46 21 40 . . . 8 9 . . . 4 1 . . . . . 7 Core Hits 155 | . 22 7 18 . . . 27 4 6 . . 19 27 . . 1 . . 24 Critical Kills . | . . . . . . . . . . . . . . . . . . . . Critical Parts Destroyed . | . . . . . . . . . . . . . . . . . . . . Critical Strikes 3 | . . . . . . . . 3 . . . . . . . . . . . Impale 3 | . . . . . . . . 3 . . . . . . . . . . . Melee Attacks 31 | . . . . . . . 8 23 . . . . . . . . . . . Impact 11 | . . . . . . . 8 3 . . . . . . . . . . . Slashing 8 | . . . . . . . . 8 . . . . . . . . . . . Piercing 12 | . . . . . . . . 12 . . . . . . . . . . . Sneak Attacks 6 | . . . . . . . 2 4 . . . . . . . . . . . Combat Hostiles . | . . . . . . . . . . . . . . . . . . . . Follow-up Attacks . | . . . . . . . . . . . . . . . . . . . . Damage Inflicted 10024 | . 639 451 1395 . . . 1566 565 227 . . 1870 1019 . . 133 . . 2159 Guns 591 | . 433 . 158 . . . . . . . . . . . . . . . . Cannons 1338 | . 206 450 682 . . . . . . . . . . . . . . . . Explosions 7152 | . . . 502 . . . 1242 . 227 . . 1870 1019 . . 133 . . 2159 Melee 889 | . . . . . . . 324 565 . . . . . . . . . . . Ramming 54 | . . 1 53 . . . . . . . . . . . . . . . . Kinetic 253 | . 236 . 17 . . . . . . . . . . . . . . . . Thermal 2094 | . 340 450 1184 . . . . . . . . . 120 . . . . . . Explosive 6397 | . . . . . . . 1242 . 227 . . 1870 899 . . . . . 2159 Electromagnetic 337 | . 63 . 141 . . . . . . . . . . . . 133 . . . Impact 324 | . . . . . . . 324 . . . . . . . . . . . . Slashing 347 | . . . . . . . . 347 . . . . . . . . . . . Piercing 218 | . . . . . . . . 218 . . . . . . . . . . . Highest Corruption 2 | . 2 2 . . . . . . . . . . . . . 1 2 2 2 Average Corruption 1 | . 2 2 . . . . . . . . . . . . . 1 2 2 2 Corruption Purged . | . . . . . . . . . . . . . . . . . . . . Corruption Blocked . | . . . . . . . . . . . . . . . . . . . . Effects 19 | . 4 9 . . . . . . . . . . . . . . 2 2 2 Message Errors 2 | . 1 1 . . . . . . . . . . . . . . . . . Matter Fused 7 | . 2 3 . . . . . . . . . . . . . . 2 . . Heat Flow Errors 3 | . . 2 . . . . . . . . . . . . . . . . 1 Energy Discharges 2 | . . 1 . . . . . . . . . . . . . . . 1 . Data Loss (minor) 3 | . 1 . . . . . . . . . . . . . . . . 1 1 Data Loss (major) 1 | . . 1 . . . . . . . . . . . . . . . . . Alerts 1 | . . 1 . . . . . . . . . . . . . . . . . Overload Shots . | . . . . . . . . . . . . . . . . . . . . Overflow Damage 848 | . . 12 184 . . . 148 165 . . . 145 29 . . . . . 165 Projectiles 17 | . . 12 5 . . . . . . . . . . . . . . . . Explosions 577 | . . . 179 . . . 59 . . . . 145 29 . . . . . 165 Melee 254 | . . . . . . . 89 165 . . . . . . . . . . . Knockbacks 1 | . . . . . . . 1 . . . . . . . . . . . . Impact 1 | . . . . . . . 1 . . . . . . . . . . . . Kinetic . | . . . . . . . . . . . . . . . . . . . . Secondary . | . . . . . . . . . . . . . . . . . . . . Self-Inflicted Damage 286 | . . . 60 . . . 93 . . . . 26 . . . 107 . . . Shots 6 | . . . 1 . . . 3 . . . . 1 . . . 1 . . . Rammed 8 | . . 1 7 . . . . . . . . . . . . . . . . Targets Rammed 8 | . . 1 7 . . . . . . . . . . . . . . . . Kicked . | . . . . . . . . . . . . . . . . . . . . Crushed . | . . . . . . . . . . . . . . . . . . . . Highest Temperature 427 | . 225 342 427 . . . 94 28 31 . . 24 14 . . . . . 244 Average Temperature 106 | . 79 129 160 . . . 41 14 16 . . 8 5 . . . . . 123 Received Heat Transfer 1218 | . 303 105 372 . . . 117 54 . . . 9 72 54 63 . . . 69 Effects 17 | . 3 4 10 . . . . . . . . . . . . . . . . Shutdowns 2 | . . . 2 . . . . . . . . . . . . . . . . Energy Bleed 2 | . . . 2 . . . . . . . . . . . . . . . . Interference 12 | . 3 4 5 . . . . . . . . . . . . . . . . Damage (minor) 1 | . . . 1 . . . . . . . . . . . . . . . . Siege Activations . | . . . . . . . . . . . . . . . . . . . . Robots Corrupted 1 | . . . . . . . 1 . . . . . . . . . . . . Combat Hostiles . | . . . . . . . . . . . . . . . . . . . . Parts Fried 3 | . . . 1 . . . 2 . . . . . . . . . . . . Impact Corruptions 4 | . . . . . . . 4 . . . . . . . . . . . . Robots Melted 1 | . . 1 . . . . . . . . . . . . . . . . . Combat Hostiles 1 | . . 1 . . . . . . . . . . . . . . . . . Parts Melted 2 | . 1 1 . . . . . . . . . . . . . . . . . Heat Transferred 3044 | . 670 814 1460 . . . . . . . . . 100 . . . . . . Parts Sabotaged . | . . . . . . . . . . . . . . . . . . . . Parts Stolen . | . . . . . . . . . . . . . . . . . . . . Parts Stripped . | . . . . . . . . . . . . . . . . . . . . Power Chain Reactions 1 | . . . 1 . . . . . . . . . . . . . . . . Alert | -11 -10 -10 -9 -9 -9 -8 -8 -7 -7 -7 -7 -5 -5 -5 -5 -5 -4 -4 -4 ------- Run | Yrd Mat Min Mat Min Exi Min Mat Fac Sto Rec Scr Fac Ext Cet Arc Hub Fac Was Fac Peak Influence 693 | . 261 112 265 103 . . 693 366 336 130 . 527 414 192 153 322 172 60 361 Initial 315 | . . 9 . 103 . . . 315 19 130 . . 257 172 76 53 157 60 42 Average 138 | . 91 38 109 103 . . 153 151 204 130 . 205 313 185 95 110 158 60 216 Maximum Alert Level 2 | . 1 . 1 . . . 2 1 1 . . 2 2 . . 1 . . 1 Low Security (%) 76 | 100 93 100 69 100 . 100 81 76 51 100 . 58 6 100 100 77 100 100 51 Level 1 20 | . 6 . 30 . . . 1 23 48 . . 11 92 . . 22 . . 48 Level 2 2 | . . . . . . . 17 . . . . 30 1 . . . . . . Level 3 . | . . . . . . . . . . . . . . . . . . . . Level 4 . | . . . . . . . . . . . . . . . . . . . . Level 5 . | . . . . . . . . . . . . . . . . . . . . High Security . | . . . . . . . . . . . . . . . . . . . . Max Security . | . . . . . . . . . . . . . . . . . . . . Squads Dispatched 18 | . 3 . 2 . . . 4 3 1 . . 3 . . . 1 . . 1 Investigation 6 | . 2 . 1 . . . 1 1 . . . . . . . 1 . . . Extermination 2 | . . . . . . . . 2 . . . . . . . . . . . Reinforcement 9 | . 1 . 1 . . . 3 . 1 . . 2 . . . . . . 1 Assault 1 | . . . . . . . . . . . . 1 . . . . . . . Garrison . | . . . . . . . . . . . . . . . . . . . . Intercept . | . . . . . . . . . . . . . . . . . . . . Searches Triggered . | . . . . . . . . . . . . . . . . . . . . Construction Impeded 3 | . . . 1 . . . . . . . . 1 . . . . . . 1 Haulers Reinforced . | . . . . . . . . . . . . . . . . . . . . Active Scanning Responses . | . . . . . . . . . . . . . . . . . . . . Cargo Convoy Interrupts . | . . . . . . . . . . . . . . . . . . . . Stealth | -11 -10 -10 -9 -9 -9 -8 -8 -7 -7 -7 -7 -5 -5 -5 -5 -5 -4 -4 -4 --------- Run | Yrd Mat Min Mat Min Exi Min Mat Fac Sto Rec Scr Fac Ext Cet Arc Hub Fac Was Fac Distress Signals 8 | . . 1 2 . . . . . 3 . . . 1 1 . . . . . Communications Jammed 19 | . . . . . . . . 12 5 . . 2 . . . . . . . Distress Signals 19 | . . . . . . . . 12 5 . . 2 . . . . . . . Times Spotted 160 | . 22 9 33 . . . 30 14 12 . . 8 14 5 4 2 1 . 6 Peak Tracking Total 13 | . 3 3 10 . . . 13 3 5 . . 4 4 5 4 2 1 . 3 Tactical Retreats 13 | . . . 2 . . . 3 4 1 . . . 3 . . . . . . Traps | -11 -10 -10 -9 -9 -9 -8 -8 -7 -7 -7 -7 -5 -5 -5 -5 -5 -4 -4 -4 ------- Run | Yrd Mat Min Mat Min Exi Min Mat Fac Sto Rec Scr Fac Ext Cet Arc Hub Fac Was Fac Traps Triggered 18 | . 6 . 1 . . . . 3 1 . . 1 4 . . . 2 . . Indirectly . | . . . . . . . . . . . . . . . . . . . . Trap Hack Attempts . | . . . . . . . . . . . . . . . . . . . . Triggered . | . . . . . . . . . . . . . . . . . . . . Disarmed . | . . . . . . . . . . . . . . . . . . . . Reprogrammed . | . . . . . . . . . . . . . . . . . . . . Reused . | . . . . . . . . . . . . . . . . . . . . Traps Extracted . | . . . . . . . . . . . . . . . . . . . . Installed 4 | . . 4 . . . . . . . . . . . . . . . . . Triggered . | . . . . . . . . . . . . . . . . . . . . Objects Rigged 2 | . . . 2 . . . . . . . . . . . . . . . . Exploded 1 | . . . 1 . . . . . . . . . . . . . . . . Machines | -11 -10 -10 -9 -9 -9 -8 -8 -7 -7 -7 -7 -5 -5 -5 -5 -5 -4 -4 -4 ---------- Run | Yrd Mat Min Mat Min Exi Min Mat Fac Sto Rec Scr Fac Ext Cet Arc Hub Fac Was Fac Machines Disabled 26 | . . . 6 . . . 4 3 1 . . 2 2 1 1 5 . . 1 Max in Single Turn 5 | . . . 5 . . . 2 1 1 . . 1 1 1 1 5 . . 1 Garrison Access 2 | . . . . . . . . 2 . . . . . . . . . . . Network Hub 1 | . . . . . . . . . . . . . . . . 1 . . . Energy Cycler 1 | . . . . . . . . . . . . . 1 . . . . . . Machines Repaired . | . . . . . . . . . . . . . . . . . . . . Machines Dismantled . | . . . . . . . . . . . . . . . . . . . . Machines Sabotaged . | . . . . . . . . . . . . . . . . . . . . Overloaded Fab Kills . | . . . . . . . . . . . . . . . . . . . . Hacking | -11 -10 -10 -9 -9 -9 -8 -8 -7 -7 -7 -7 -5 -5 -5 -5 -5 -4 -4 -4 --------- Run | Yrd Mat Min Mat Min Exi Min Mat Fac Sto Rec Scr Fac Ext Cet Arc Hub Fac Was Fac Machines Accessed 34 | . 1 . 4 1 1 . 3 14 2 . . 2 2 1 . 1 2 . . Terminals 23 | . 1 . 4 . . . 3 6 2 . . 2 2 1 . 1 1 . . Fabricators 5 | . . . . . . . . 4 . . . . . . . . 1 . . Repair Stations . | . . . . . . . . . . . . . . . . . . . . Recycling Units . | . . . . . . . . . . . . . . . . . . . . Scanalyzers 1 | . . . . . . . . 1 . . . . . . . . . . . Garrison Access 3 | . . . . . . . . 3 . . . . . . . . . . . Total Hacks 73 | . 3 . 9 1 1 . 7 21 5 . . 9 3 5 . 5 4 . . Successful 35 | . 3 . 5 1 1 . 3 7 3 . . 5 2 1 . . 4 . . Failed 38 | . . . 4 . . . 4 14 2 . . 4 1 4 . 5 . . . Catastrophic 7 | . . . . . . . 1 3 . . . 1 . . . 2 . . . Database Lockouts . | . . . . . . . . . . . . . . . . . . . . Manual 23 | . . . 8 . 1 . 5 2 4 . . 2 . . . . 1 . . Terminals 58 | . 3 . 9 . . . 7 10 5 . . 9 3 5 . 5 2 . . Fabricators 8 | . . . . . . . . 6 . . . . . . . . 2 . . Repair Stations . | . . . . . . . . . . . . . . . . . . . . Recycling Units . | . . . . . . . . . . . . . . . . . . . . Scanalyzers 1 | . . . . . . . . 1 . . . . . . . . . . . Garrison Access 4 | . . . . . . . . 4 . . . . . . . . . . . Terminal Hacks 24 | . 3 . 3 1 1 . 2 1 3 . . 5 2 1 . . 2 . . Robot Analysis 1 | . . . 1 . . . . . . . . . . . . . . . . Prototype ID Bank 1 | . 1 . . . . . . . . . . . . . . . . . . Open Door 4 | . . . . 1 . . . . 1 . . . 1 1 . . . . . Level Access Points 2 | . . . . . . . . . . . . 1 . . . . 1 . . Branch Access Points 3 | . . . 1 . . . 1 . 1 . . . . . . . . . . Emergency Access Points 1 | . 1 . . . . . . . . . . . . . . . . . . Machine Index 1 | . . . . . . . . . . . . 1 . . . . . . . Terminal Index 1 | . . . . . . . . . 1 . . . . . . . . . . Locate Traps 2 | . . . 1 . . . . . . . . 1 . . . . . . . Hauler Manifests 3 | . 1 . . . . . 1 . . . . 1 . . . . . . . Zone Layout 4 | . . . . . . . . 1 . . . 1 1 . . . 1 . . Derelict Proto ID Bank 1 | . . . . . 1 . . . . . . . . . . . . . . Fabricator Hacks 5 | . . . . . . . . 3 . . . . . . . . 2 . . Network Status 2 | . . . . . . . . 1 . . . . . . . . 1 . . Build 3 | . . . . . . . . 2 . . . . . . . . 1 . . Repair Station Hacks . | . . . . . . . . . . . . . . . . . . . . Recycling Unit Hacks . | . . . . . . . . . . . . . . . . . . . . Scanalyzer 1 | . . . . . . . . 1 . . . . . . . . . . . Insert Component 1 | . . . . . . . . 1 . . . . . . . . . . . Garrison Access Hacks 2 | . . . . . . . . 2 . . . . . . . . . . . Seal Access 2 | . . . . . . . . 2 . . . . . . . . . . . Unauthorized Hacks 3 | . . . 2 . . . 1 . . . . . . . . . . . . Terminals 3 | . . . 2 . . . 1 . . . . . . . . . . . . Detonate 1 | . . . 1 . . . . . . . . . . . . . . . . Disrupt 1 | . . . 1 . . . . . . . . . . . . . . . . Operators 1 | . . . . . . . 1 . . . . . . . . . . . . Fabricators . | . . . . . . . . . . . . . . . . . . . . Repair Stations . | . . . . . . . . . . . . . . . . . . . . Recycling Units . | . . . . . . . . . . . . . . . . . . . . Scanalyzers . | . . . . . . . . . . . . . . . . . . . . Garrison Access . | . . . . . . . . . . . . . . . . . . . . Data Cores Recovered . | . . . . . . . . . . . . . . . . . . . . Used . | . . . . . . . . . . . . . . . . . . . . Hacking Detections 21 | . 1 . 3 . . . 2 9 1 . . 2 1 1 . 1 . . . Full Trace Events 2 | . . . . . . . 1 . . . . . . . . 1 . . . Feedback Events . | . . . . . . . . . . . . . . . . . . . . Feedback Blocked . | . . . . . . . . . . . . . . . . . . . . Robot Schematics Acquired . | . . . . . . . . . . . . . . . . . . . . Robots Built . | . . . . . . . . . . . . . . . . . . . . Authchips . | . . . . . . . . . . . . . . . . . . . . Time . | . . . . . . . . . . . . . . . . . . . . Total Robot Build Rating . | . . . . . . . . . . . . . . . . . . . . Part Schematics Acquired . | . . . . . . . . . . . . . . . . . . . . Parts Built 6 | . . . . . . . . 4 . . . . . . . . 2 . . Authchips . | . . . . . . . . . . . . . . . . . . . . Time 270 | . . . . . . . . 131 . . . . . . . . 139 . . Total Part Build Rating 36 | . . . . . . . . 18 . . . . . . . . 18 . . Parts Repaired . | . . . . . . . . . . . . . . . . . . . . Time . | . . . . . . . . . . . . . . . . . . . . Parts Recycled . | . . . . . . . . . . . . . . . . . . . . Recycled Matter . | . . . . . . . . . . . . . . . . . . . . Retrieved Matter . | . . . . . . . . . . . . . . . . . . . . Retrieved Components . | . . . . . . . . . . . . . . . . . . . . Parts Scanalyzed . | . . . . . . . . . . . . . . . . . . . . Part Schematics Acquired . | . . . . . . . . . . . . . . . . . . . . Parts Damaged . | . . . . . . . . . . . . . . . . . . . . Bothacking | -11 -10 -10 -9 -9 -9 -8 -8 -7 -7 -7 -7 -5 -5 -5 -5 -5 -4 -4 -4 ------------ Run | Yrd Mat Min Mat Min Exi Min Mat Fac Sto Rec Scr Fac Ext Cet Arc Hub Fac Was Fac Used RIF Installer . | . . . . . . . . . . . . . . . . . . . . Robots Hacked . | . . . . . . . . . . . . . . . . . . . . Non-combat . | . . . . . . . . . . . . . . . . . . . . Combat . | . . . . . . . . . . . . . . . . . . . . Robot Hacks Applied . | . . . . . . . . . . . . . . . . . . . . Relay Couplers Released . | . . . . . . . . . . . . . . . . . . . . Fabnet Peak Effective % . | . . . . . . . . . . . . . . . . . . . . Robots Rewired . | . . . . . . . . . . . . . . . . . . . . Allies Hacked . | . . . . . . . . . . . . . . . . . . . . Hacks Repelled . | . . . . . . . . . . . . . . . . . . . . Allies | -11 -10 -10 -9 -9 -9 -8 -8 -7 -7 -7 -7 -5 -5 -5 -5 -5 -4 -4 -4 -------- Run | Yrd Mat Min Mat Min Exi Min Mat Fac Sto Rec Scr Fac Ext Cet Arc Hub Fac Was Fac Total Allies 18 | . . 3 . . . . . . 10 . . . 5 . . . . . . Largest Group 10 | . . 3 1 . . . . . 10 . . . 2 . . . . . . Highest-Rated Group 173 | . . 40 16 . . . . . 173 . . . 51 . . . . . . Highest-Rated Ally 31 | . . 16 16 . . . . . 29 . . . 31 . . . . . . Total Orders . | . . . . . . . . . . . . . . . . . . . . Ally Attacks 113 | . . 21 14 . . . . . 43 . . . 35 . . . . . . Total Damage 1483 | . . 195 187 . . . . . 594 . . . 507 . . . . . . Kills 10 | . . 2 1 . . . . . 5 . . . 2 . . . . . . Allies Corrupted . | . . . . . . . . . . . . . . . . . . . . Allies Melted 1 | . . . . . . . . . . . . . 1 . . . . . . Intel | -11 -10 -10 -9 -9 -9 -8 -8 -7 -7 -7 -7 -5 -5 -5 -5 -5 -4 -4 -4 ------- Run | Yrd Mat Min Mat Min Exi Min Mat Fac Sto Rec Scr Fac Ext Cet Arc Hub Fac Was Fac Robot Analysis Total 1 | . . . 1 . . . . . . . . . . . . . . . . Derelict Logs Recovered . | . . . . . . . . . . . . . . . . . . . . Drone Launches 16 | . . . . . . . . . . . . . 16 . . . . . . Drone Recoveries 1 | . . . . . . . . . . . . . 1 . . . . . . Exploration | -11 -10 -10 -9 -9 -9 -8 -8 -7 -7 -7 -7 -5 -5 -5 -5 -5 -4 -4 -4 ------------- Run | Yrd Mat Min Mat Min Exi Min Mat Fac Sto Rec Scr Fac Ext Cet Arc Hub Fac Was Fac Turns Passed 7256 | 3 1210 843 499 57 94 25 364 1695 182 98 379 305 578 75 112 125 239 160 213 Spaces Moved 7729 | 3 660 465 249 115 211 49 474 2156 150 196 736 463 694 111 68 304 274 229 122 Core 226 | . . . 53 . . . . . . . . . . 79 68 26 . . . Treads 1071 | . 468 465 138 . . . . . . . . . . . . . . . . Legs 387 | 3 192 . . . . . . . . . . . . . . . . 70 122 Wheels 58 | . . . 58 . . . . . . . . . . . . . . . . Hover . | . . . . . . . . . . . . . . . . . . . . Flight 5987 | . . . . 115 211 49 474 2156 150 196 736 463 694 32 . 278 274 159 . Fastest Speed 35 | 120 120 160 50 37 37 50 50 50 50 50 50 50 50 50 50 35 35 35 140 Average Speed 68 | 120 148 160 135 37 42 50 50 50 50 50 50 50 50 50 63 39 35 67 140 Slowest Speed 250 | 120 160 160 250 37 50 50 50 50 50 50 50 50 50 50 150 100 35 140 140 Overloaded Moves . | . . . . . . . . . . . . . . . . . . . . Propulsion Burnouts . | . . . . . . . . . . . . . . . . . . . . Robots Hopped 26 | . . . . 1 . . 1 14 1 1 . 2 . 2 . 2 2 . . Cave-ins Triggered . | . . . . . . . . . . . . . . . . . . . . Exploration Rate (%) 48 | 2 96 92 42 34 61 13 54 55 43 49 59 14 81 79 75 18 9 94 7 Regions Visited 19 Branch Regions 11 Pre-discovered Areas 1 | . . . . 1 . . . . . . . . . . . . . . . Known Exits Taken 3 | . . . 1 . . . . . 1 . . . . . . 1 . . . Unknown Exits Taken 14 | 1 1 1 . 1 1 1 1 1 . 1 1 1 1 1 1 . . . . Scrap Searched 3 | . . . . 1 . . . . . . 2 . . . . . . . . Spaces Dug 13 | . . . . . . . 8 4 . . . . . . 1 . . . . Terrain Destroyed 673 | . . . 38 . . . 97 4 11 . . 138 123 . 1 161 . . 100 Melee 4 | . . . . . . . . 4 . . . . . . . . . . . Projectile 8 | . . . 7 . . . . . . . . . . . 1 . . . . AOE 661 | . . . 31 . . . 97 . 11 . . 138 123 . . 161 . . 100 Terrain Rammed . | . . . . . . . . . . . . . . . . . . . . Walls Destroyed . | . . . . . . . . . . . . . . . . . . . . Machines Disabled . | . . . . . . . . . . . . . . . . . . . . Actions | -11 -10 -10 -9 -9 -9 -8 -8 -7 -7 -7 -7 -5 -5 -5 -5 -5 -4 -4 -4 --------- Run | Yrd Mat Min Mat Min Exi Min Mat Fac Sto Rec Scr Fac Ext Cet Arc Hub Fac Was Fac Total 9330 | 2 789 516 352 127 214 48 574 2719 253 194 746 518 914 130 133 304 414 234 149 Wait 1261 | . 48 23 31 9 . . 70 521 100 . 9 33 193 12 61 . 139 . 12 Move 7660 | 2 659 464 248 112 210 48 471 2127 147 193 735 458 693 107 67 299 270 228 122 Hop 25 | . . . . 1 . . 1 14 1 1 . 2 . 1 . 2 2 . . Pick Up 34 | . 8 . 5 2 . . 5 4 . . 2 4 2 . . . 2 . . Fast Attach 34 | . 9 . 3 1 1 . 3 11 . . . . . . . 2 1 3 . Attach 36 | . 6 . 10 2 1 . 2 3 1 . . 4 5 1 1 . . . . Detach 7 | . 2 . . . . . 1 2 . . . . . 1 1 . . . . Swap 3 | . 1 . . . . . . 1 . . . . 1 . . . . . . Drop 45 | . 4 . 10 . 2 . 2 14 . . . 2 3 7 . . . 1 . Fire 172 | . 52 24 38 . . . 11 . 2 . . 15 10 1 3 1 . . 15 Melee 30 | . . . . . . . 8 22 . . . . . . . . . . . Ram 4 | . . . 4 . . . . . . . . . . . . . . . . Kick . | . . . . . . . . . . . . . . . . . . . . Crush 4 | . . 1 3 . . . . . . . . . . . . . . . . Escape Stasis 9 | . . . . . . . . . 2 . . . 7 . . . . . . Rewire 2 | . . . . . . . . . . . . . . . . . . 2 . Trap 4 | . . 4 . . . . . . . . . . . . . . . . . Miscellaneous . | . . . . . . . . . . . . . . . . . . . . Route ------- -11/Scrapyard -10/Materials (discovered 5 exits: *Mat x3 / [*Min] / [*Sub]) -10/Mines (discovered 2 exits: *Mat x2) -9/Materials -9/Mines (discovered 2 exits: *Mat / *Exi) -9/Exiles -8/Mines -8/Materials -7/Factory (discovered 2 exits: *Sto / [*Low]) -7/Storage -7/Recycling (discovered 2 exits: *Fac / *Scr) -7/Scraptown -5/Factory (discovered 5 exits: Fac x4 / *Ext) -5/Extension (discovered 3 exits: *Fac x2 / *Cet) -5/Cetus -5/Archives (discovered 2 exits: *Fac / *Hub) -5/Hub_04(d) -4/Factory (discovered 4 exits: Res x4) -4/Waste -4/Factory History --------- Turn | Location | Event 1 | -11/Scrapyard | Discovered new exit (range 0) 4 | -11/Scrapyard | Entered Materials 78 | -10/Materials | Discovered new exit (range 9) 124 | -10/Materials | Discovered new exit (range 3) 223 | -10/Materials | Discovered new exit (range 13) 318 | -10/Materials | Build established: Mutant 368 | -10/Materials | Lost 3 parts (1n2w) 522 | -10/Materials | Discovered new exit (range 14) 1011 | -10/Materials | Discovered new exit (range 8) 1214 | -10/Materials | Entered Mines 1230 | -10/Mines | Found a hidden stash of uninstalled traps 1343 | -10/Mines | Joined a pair of Derelicts in attacking an 0b10 outpost 1498 | -10/Mines | Discovered new exit (range 7) 1557 | -10/Mines | Assisted by bots powering up and referring to "LRC-V3" 1721 | -10/Mines | Discovered new exit (range 6) 1795 | -10/Mines | Excavation squad dispatched 1795 | -10/Mines | A large section of the Mines collapsed 2057 | -10/Mines | Entered Materials 2057 | -9/Materials | Accompanied by 1 ally 2057 | -9/Materials | Evolved 2 slots: Propulsion x2 2126 | -9/Materials | Identified exit to Mines 2390 | -9/Materials | Lost 4 parts (1p2n1u) 2531 | -9/Materials | Lost 4 parts (3n1w) 2533 | -9/Materials | Core integrity fell below 50% 2550 | -9/Materials | Core integrity fell below 20% 2556 | -9/Materials | Entered Mines 2573 | -9/Mines | Received a Rocket Launcher from a helpful Derelict 2586 | -9/Mines | Discovered new exit (range 9) 2593 | -9/Mines | Found the Drone Emporium 2594 | -9/Mines | Found Prototype Device 2609 | -9/Mines | Learned location of Storage (-7) 2612 | -9/Mines | Deemed a non-threat by the Exiles lab entrance 2612 | -9/Mines | Discovered new exit (range 5) 2613 | -9/Mines | Entered Exiles 2623 | -9/Exiles | Met 8R-AWN 2629 | -9/Exiles | Met EX-HEX 2639 | -9/Exiles | Met EX-BIN 2644 | -9/Exiles | Aligned with FarCom system 2644 | -9/Exiles | Given EX-Vault access code 2653 | -9/Exiles | Opened EX-Vault 2657 | -9/Exiles | Found Flying Fortress v7 2669 | -9/Exiles | Warned to stay clear of 0b10 Research branches 2683 | -9/Exiles | Met EX-DEC 2703 | -9/Exiles | Discovered new exit (range 10) 2707 | -9/Exiles | Left Exiles lab with Flying Fortress v7 2707 | -9/Exiles | Entered Mines 2730 | -8/Mines | Discovered new exit (range 4) 2732 | -8/Mines | Entered Materials 2732 | -8/Materials | Evolved 2 slots: Utility x2 2737 | -8/Materials | Identified Bomb Drone Bay 3059 | -8/Materials | Destroyed 9 combat bots 3081 | -8/Materials | Discovered new exit (range 16) 3096 | -8/Materials | Entered Factory 3096 | -7/Factory | Evolved 2 slots: Utility x2 3336 | -7/Factory | Discovered new exit (range 11) 3659 | -7/Factory | Fabricated Transmission Jammer (x2) 3944 | -7/Factory | Build established: Infiltrator-Mutant 4305 | -7/Factory | Discovered new exit (range 5) 4618 | -7/Factory | Build established: Mutant 4665 | -7/Factory | Fabricated Triangulator (x2) 4791 | -7/Factory | Entered Storage 4856 | -7/Storage | Assisted by bots powering up and referring to "LRC-V3" 4955 | -7/Storage | Identified exit to Recycling 4965 | -7/Storage | Lost 4 allies 4971 | -7/Storage | Used back door to open Recycling access 4973 | -7/Storage | Entered Recycling 5013 | -7/Recycling | Discovered new exit (range 5) 5059 | -7/Recycling | Scanned before Scraplab entrance 5066 | -7/Recycling | Entered Scraplab 5070 | -7/Recycling | Discovered new exit (range 3) 5071 | -7/Recycling | Entered Scraptown 5184 | -7/Scraptown | Discovered new exit (range 11) 5220 | -7/Scraptown | Visited SPCMW 5233 | -7/Scraptown | Visited Assassins FH 5253 | -7/Scraptown | Visited The Evicted 5259 | -7/Scraptown | Visited Comm Corps 5275 | -7/Scraptown | Build established: Infiltrator-Mutant 5286 | -7/Scraptown | Visited TADAMA 5306 | -7/Scraptown | Visited Cave Peace 5316 | -7/Scraptown | Visited Shadow of the Wyrm 5420 | -7/Scraptown | Turned away by UFD registrar 5450 | -7/Scraptown | Entered Factory 5450 | -5/Factory | Evolved 4 slots: Propulsion x1, Utility x3 5620 | -5/Factory | Identified exit to Factory 5685 | -5/Factory | Destroyed 8 combat bots 5747 | -5/Factory | Discovered new exit (range 18) 5750 | -5/Factory | First assault squad dispatched 5755 | -5/Factory | Entered Extension 5756 | -5/Extension | Build established: Hacker-Mutant 5791 | -5/Extension | Rescued a captive Derelict 5856 | -5/Extension | Energy Cycler disabled 5856 | -5/Extension | Rescued a captive Derelict 5857 | -5/Extension | Rescued a captive Derelict 5857 | -5/Extension | Rescued a captive Derelict 5858 | -5/Extension | Rescued a captive Derelict 5858 | -5/Extension | Rescued a captive Derelict 5858 | -5/Extension | Rescued a captive Derelict 5859 | -5/Extension | Rescued a captive Derelict 5859 | -5/Extension | Rescued a captive Derelict 5861 | -5/Extension | Rescued a captive Derelict 5862 | -5/Extension | Rescued a captive Derelict 5863 | -5/Extension | Rescued a captive Derelict 5870 | -5/Extension | Rescued a captive Derelict 5989 | -5/Extension | Spotted B-75 Beast 6021 | -5/Extension | Discovered exit to Factory (range 24) 6021 | -5/Extension | Spotted B-75 Beast 6058 | -5/Extension | Lost 15 allies 6294 | -5/Extension | Discovered new exit (range 20) 6295 | -5/Extension | Discovered exit to Factory (range 18) 6333 | -5/Extension | Entered Cetus 6340 | -5/Cetus | Spotted Cetus Guard 6340 | -5/Cetus | Spotted Cetus Guard 6340 | -5/Cetus | Spotted Cetus Guard 6340 | -5/Cetus | Spotted Cetus Guard 6383 | -5/Cetus | Discovered new exit (range 20) 6408 | -5/Cetus | Entered Archives 6448 | -5/Archives | Unable to access archive contents 6508 | -5/Archives | Unable to access archive contents 6510 | -5/Archives | Discovered exit to Factory (range 17) 6512 | -5/Archives | Core integrity fell below 50% 6513 | -5/Archives | Discovered new exit (range 14) 6520 | -5/Archives | Entered Hub_04(d) 6595 | -5/Hub_04(d) | Discovered exit to Factory (range 19) 6617 | -5/Hub_04(d) | Network Hub disabled 6645 | -5/Hub_04(d) | Entered Factory 6645 | -4/Factory | Evolved 2 slots: Utility x2 6822 | -4/Factory | Fabricated Enh. Quantum Rifle (x2) 6860 | -4/Factory | Identified exit to Research 6884 | -4/Factory | Manually triggered Chute Trap 6884 | -4/Factory | Sucked down chute 6884 | -4/Factory | Entered Waste 6884 | -4/Waste | The area was eerily silent 6966 | -4/Waste | Found Prototype Launcher 6966 | -4/Waste | Identified Adv. Micro-nuke Launcher 6994 | -4/Waste | Discovered new exit (range 11) 7044 | -4/Waste | Entered Factory 7257 | -4/Factory | Self-destructed Last Messages --------------- 07159_ Destroyed Lgt. Ion Engine. 07159_ K-01 Serf destroyed. 07162_ The unstable cave ceiling collapses. 07162_ Critical hit (Burn: +37). 07163_ K-01 Serf collects debris. 07163_ Destroyed Lgt. Antimatter Reactor. 07165_ The unstable cave ceiling collapses. 07165_ Destroyed Adv. Heat Sink. 07165_ G-67 Veteran destroyed. 07165_ Destroyed Lgt. Ion Engine. 07165_ K-01 Serf destroyed. 07167_ The unstable cave ceiling collapses. 07167_ Wheel crushed. 07167_ Destroyed Plasma Rifle. 07168_ The unstable cave ceiling collapses. 07171_ G-67 Veteran destroyed. 07173_ K-01 Serf collects debris. 07174_ The unstable cave ceiling collapses. 07177_ K-01 Serf collects debris. 07238_ System corrupted: Component data lost. Map ----- +----------------------------------------------------+ | ?????????????????????????????????????????????????? | | ?????????????????????????????????????????????????? | | ?????????????????????????????????????????????????? | | ?????????????????????????????????????????????????? | | ?????????????????????????????????????????????????? | | ?????????????????????????????????????????????????? | | ?????????????????????????????????????????????????? | | ?????????????????????????????????????????????????? | | ????????????????????????????? ???????????????????? | | ????????????????????????????? ???????????????????? | | ????????????????????????????? ???????????????????? | | ????????????????????????????? #??????????????????? | | ????????????????????????????? #??????????????????? | | ????????????????????????????# #??????????????????? | | ????????????????????????????# #??????????????????? | | ????????????????????????????# #??????????????????? | | ????????????????????????????# #??????????????????? | | ?????????g?????g????????????# #??????????????????? | | ????????????????????????????# #??????????????????? | | ????????????????????????????# #??????????????????? | | ?????????????????##########?# #??????????????????? | | ?????????????????? ### ###????????????????? | | ????????????????? """ """ # #????????????????? | | ???????????????"" """ """ # #????????????????? | | ???????????"" """ """ """ # #????????????????? | | ????????# @/ +????????????????? | | ????????# # #????????????????? | | ????????# # #????????????????? | | ????????################### #########+#####??? | | ???????????? #??? | | ???????????? #### | | ???????????? | | ???????????? ###? | | ????????????? #??? | | ?????????????##### T############## #??? | | ?????????????????################# #### | | ?????????????????# # | | ?????????????????# = # | | ?????????????????# * """ # | | ?????????????????# """"" # | | ?????????????????# """ """"" # | | ?????????????????# """ !# ######### | | ?????????????????# "S """ # #???????# | | ?????????????????# """ """"" # #???????# | | ?????????????????# "" """"" + #???????# | | ?????????????????# # #???????# | | ??????????????????#########+#+#### #???????# | | ??????????????????????????# #??# #???????# | | ??????????????????????????# #??# #???????# | | ??????????????????????????# #??# ^#???????# | +----------------------------------------------------+ Best States ------------- Heat Dissipation 43 Energy Generation 14 Energy Capacity 250 Matter Stores 300 Matter Capacity 300 Sight Range 20 Terrain Scan Density 10 ECM Strength 2 Jamming Range 12 Armor Coverage 150 Resistance: KI 20 Propulsion Shielding 33 Evasion (%) 68 Targeting Accuracy 16 Recoil Reduction 2 Particle Charging 15 Offensive Hacking 40 Defensive Hacking 12 Trap Extractor Capacity 6 Item Schematics ----------------- None Robot Schematics ------------------ None Fabricated ------------ Transmission Jammer | x2 | -7/Factory | Preloaded Triangulator | x2 | -7/Factory | Preloaded Enh. Quantum Rifle | x2 | -4/Factory | Preloaded Alien Tech Used ----------------- None Achievements -------------- Safety First Challenges ------------ None Game ------ Seed FlightShadingFlail Manual? 0 Play Time 01:09:09 Cumulative 93.9 hours Start 2024.08.10 @ 14:16:32 End 2024.08.10 @ 15:24:15 Sessions 1 Manual Loads 0 Difficulty Rogue Special Mode None Game No. 161 Rogue 160 Adventurer 1 Explorer 0 Win Type - Total 0 Types 0/0/0/0/0/0/0/0/0 Lore% 54 Gallery% 60 Achievement% 48 Wizard Run 0 Options --------- Layout 1 ASCII 0 Keyboard 0 Movement Mouse Keybinds 0 Fullscreen 2 Font 20/SmallcapsGlow Map View 54x42 Zoom Use 0% Tactical HUD 1 Map Filters NONE Filters NONE Steam 0 RUN: 4a894426-ba3d-4d3f-8f65-0c271c1950e5